[Event "*** Titled Tuesday 3|2 Blitz"]
[Site "Chess.com"]
[Date "2016.08.02"]
[Round "8"]
[White "fpawn"]
[Black "AdrianaNikolova"]
[Result "1/2-1/2"]
[WhiteElo "2210"]
[BlackElo "2246"]
[TimeControl "180+2"]
[EndTime "12:52:40 PDT"]
[Termination "Game drawn by repetition"]

1. e4 {[%clk 0:03:01.9]} 1... c5 {[%clk 0:03:00.5]} 2. Nc3 {[%clk 0:03:02.8]}
2... Nc6 {[%clk 0:02:57.3]} 3. g3 {[%clk 0:03:03.9]} 3... g6 {[%clk 0:02:54]} 4.
Bg2 {[%clk 0:03:05.3]} 4... Bg7 {[%clk 0:02:55.9]} 5. d3 {[%clk 0:03:06.7]} 5...
Rb8 {[%clk 0:02:57.8]} 6. Be3 {[%clk 0:03:08.1]} 6... b5 {[%clk 0:02:59.4]} 7.
Qd2 {[%clk 0:02:52]} 7... b4 {[%clk 0:02:57.3]} 8. Nd1 {[%clk 0:02:53]} 8... d6
{[%clk 0:02:58.1]} 9. f4 {[%clk 0:02:51.9]} 9... Bb7 {[%clk 0:02:52.2]} 10. Nf3
{[%clk 0:02:50.3]} 10... e6 {[%clk 0:02:52.2]} 11. O-O {[%clk 0:02:50.9]} 11...
Nge7 {[%clk 0:02:53.8]} 12. e5 {[%clk 0:02:38.6]} 12... Nf5 {[%clk 0:02:50.4]}
13. Bf2 {[%clk 0:02:39.3]} 13... Ncd4 {[%clk 0:02:49.2]} 14. Nxd4 {[%clk
0:02:33.8]} 14... Nxd4 {[%clk 0:02:47.5]} 15. c3 {[%clk 0:02:31.5]} 15... bxc3
{[%clk 0:02:43.8]} 16. bxc3 {[%clk 0:02:31.3]} 16... Bxg2 {[%clk 0:02:25.8]} 17.
cxd4 {[%clk 0:02:23.6]} 17... Bxf1 {[%clk 0:02:25]} 18. Kxf1 {[%clk 0:02:18.1]}
18... cxd4 {[%clk 0:02:21.4]} 19. exd6 {[%clk 0:02:05.1]} 19... Qxd6 {[%clk
0:02:19.9]} 20. Nb2 {[%clk 0:02:06]} 20... Qd5 {[%clk 0:02:13.8]} 21. Nc4 {[%clk
0:02:04.7]} 21... Qh1+ {[%clk 0:02:09.2]} 22. Bg1 {[%clk 0:02:05.8]} 22... Qf3+
{[%clk 0:02:09.8]} 23. Ke1 {[%clk 0:02:04.6]} 23... O-O {[%clk 0:02:03.8]} 24.
Qe2 {[%clk 0:02:04.6]} 24... Qd5 {[%clk 0:02:01.1]} 25. Rd1 {[%clk 0:01:57.9]}
25... Rfe8 {[%clk 0:01:55.3]} 26. Kf1 {[%clk 0:01:57.3]} 26... e5 {[%clk
0:01:55.4]} 27. fxe5 {[%clk 0:01:56.9]} 27... Bxe5 {[%clk 0:01:57.3]} 28. Qg2
{[%clk 0:01:52.3]} 28... Qe6 {[%clk 0:01:46.5]} 29. Re1 {[%clk 0:01:51]} 29...
Qf5+ {[%clk 0:01:40.1]} 30. Qf2 {[%clk 0:01:52.2]} 30... Qxd3+ {[%clk
0:01:40.2]} 31. Qe2 {[%clk 0:01:47.8]} 31... Qxe2+ {[%clk 0:01:13.6]} 32. Rxe2
{[%clk 0:01:49.7]} 32... Rb1+ {[%clk 0:01:11.6]} 33. Kg2 {[%clk 0:01:48.7]}
33... d3 {[%clk 0:01:02.7]} 34. Rd2 {[%clk 0:01:49.7]} 34... Bc3 {[%clk
0:00:43.1]} 35. Rxd3 {[%clk 0:01:45.1]} 35... Re2+ {[%clk 0:00:36.5]} 36. Kf3
{[%clk 0:01:30.8]} 36... Rc2 {[%clk 0:00:36.8]} 37. Bxa7 {[%clk 0:01:26.1]}
37... Rf1+ {[%clk 0:00:33.6]} 38. Kg4 {[%clk 0:01:26]} 38... Bf6 {[%clk
0:00:31.2]} 39. Ne3 {[%clk 0:01:21.5]} 39... Rxa2 {[%clk 0:00:20.5]} 40. Nxf1
{[%clk 0:01:05.9]} 40... Rxa7 {[%clk 0:00:21.6]} 41. h4 {[%clk 0:01:06]} 41...
h5+ {[%clk 0:00:21.8]} 42. Kh3 {[%clk 0:01:06.4]} 42... Ra1 {[%clk 0:00:23.7]}
43. Ne3 {[%clk 0:01:07.3]} 43... Kg7 {[%clk 0:00:25.6]} 44. Nd5 {[%clk
0:01:07.3]} 44... Be5 {[%clk 0:00:25.1]} 45. Re3 {[%clk 0:01:06]} 45... Bd6
{[%clk 0:00:25.4]} 46. Rd3 {[%clk 0:01:06.7]} 46... Ra3 {[%clk 0:00:25.3]} 47.
Rxa3 {[%clk 0:01:05.6]} 47... Bxa3 {[%clk 0:00:27.2]} 48. Kg2 {[%clk 0:01:06.1]}
48... Bb2 {[%clk 0:00:22.9]} 49. Kf3 {[%clk 0:01:06.5]} 49... Bd4 {[%clk
0:00:22.2]} 50. Kf4 {[%clk 0:01:06.9]} 50... Bc5 {[%clk 0:00:21.8]} 51. Kf3
{[%clk 0:01:07.9]} 51... Bd6 {[%clk 0:00:21.9]} 52. Kf2 {[%clk 0:01:05.6]} 52...
Be5 {[%clk 0:00:21.3]} 53. Kf3 {[%clk 0:01:06.6]} 53... Kf8 {[%clk 0:00:22.2]}
54. Kf2 {[%clk 0:01:04]} 54... Ke8 {[%clk 0:00:23.2]} 55. Kf3 {[%clk 0:01:05.2]}
55... Kd7 {[%clk 0:00:24.1]} 56. Ne3 {[%clk 0:01:05.3]} 56... f5 {[%clk
0:00:21.6]} 57. Nd5 {[%clk 0:01:04.9]} 57... Ke6 {[%clk 0:00:22.3]} 58. Ne3
{[%clk 0:01:05.8]} 58... Bd4 {[%clk 0:00:22.4]} 59. Ng2 {[%clk 0:01:05.6]} 59...
Be5 {[%clk 0:00:19.9]} 60. Ne3 {[%clk 0:01:06.4]} 60... Bd6 {[%clk 0:00:19.3]}
61. Nc4 {[%clk 0:01:05.5]} 61... Bc7 {[%clk 0:00:20]} 62. Ne3 {[%clk 0:01:05.9]}
62... Bb6 {[%clk 0:00:20.6]} 63. Nc4 {[%clk 0:01:05.6]} 63... Bc5 {[%clk
0:00:22]} 64. Nd2 {[%clk 0:01:06.5]} 64... Ke5 {[%clk 0:00:21.8]} 65. Nc4+
{[%clk 0:01:07]} 65... Kd5 {[%clk 0:00:22.1]} 66. Nd2 {[%clk 0:01:07.3]} 66...
Bd4 {[%clk 0:00:22.7]} 67. Nb3 {[%clk 0:01:07.5]} 67... Bc3 {[%clk 0:00:24]} 68.
Nc1 {[%clk 0:01:07.2]} 68... Kc4 {[%clk 0:00:14.4]} 69. Ne2 {[%clk 0:01:07]}
69... Bd2 {[%clk 0:00:15]} 70. Ng1 {[%clk 0:00:58.9]} 70... Kd4 {[%clk
0:00:09.8]} 71. Ne2+ {[%clk 0:00:59.6]} 71... Ke5 {[%clk 0:00:11.1]} 72. Ng1
{[%clk 0:00:59.1]} 72... f4 {[%clk 0:00:06.5]} 73. g4 {[%clk 0:00:59.7]} 73...
hxg4+ {[%clk 0:00:06.6]} 74. Kxg4 {[%clk 0:01:00.6]} 74... Ke4 {[%clk 0:00:05]}
75. Nf3 {[%clk 0:01:01.8]} 75... Bb4 {[%clk 0:00:05.4]} 76. Ng5+ {[%clk
0:01:02.6]} 76... Ke3 {[%clk 0:00:05.9]} 77. Nf3 {[%clk 0:01:03.5]} 77... Be7
{[%clk 0:00:07.3]} 78. Ne5 {[%clk 0:01:00.8]} 78... Bf6 {[%clk 0:00:06.9]} 79.
Nf3 {[%clk 0:00:46.7]} 79... Ke4 {[%clk 0:00:03.3]} 80. Nd2+ {[%clk 0:00:46.6]}
80... Kd3 {[%clk 0:00:04]} 81. Nf3 {[%clk 0:00:48.5]} 81... Ke3 {[%clk
0:00:04.9]} 82. Nh2 {[%clk 0:00:49.6]} 82... Be7 {[%clk 0:00:03.1]} 83. Nf3
{[%clk 0:00:50.4]} 83... Bf6 {[%clk 0:00:04.6]} 84. Ng1 {[%clk 0:00:51.1]} 84...
Ke4 {[%clk 0:00:05.2]} 85. Nf3 {[%clk 0:00:52]} 85... Ke3 {[%clk 0:00:06.6]} 86.
Nh2 {[%clk 0:00:53]} 86... Ke4 {[%clk 0:00:06.3]} 87. Nf3 {[%clk 0:00:54.2]}
87... Be7 {[%clk 0:00:07.6]} 88. Nh2 {[%clk 0:00:54.7]} 88... Ke3 {[%clk
0:00:08.5]} 89. Nf3 {[%clk 0:00:55.7]} 89... Bf6 {[%clk 0:00:09.3]} 1/2-1/2

[Event "*** Titled Tuesday 3|2 Blitz"]
[Site "Chess.com"]
[Date "2016.08.02"]
[Round "8"]
[White "TyIerDurden"]
[Black "DanielNaroditsky"]
[Result "1/2-1/2"]
[WhiteElo "2504"]
[BlackElo "2668"]
[TimeControl "180+2"]
[EndTime "12:54:38 PDT"]
[Termination "Game drawn by agreement"]

1. Nf3 {[%clk 0:03:01.9]} 1... d5 {[%clk 0:03:00.8]} 2. g3 {[%clk 0:03:03.8]}
2... g6 {[%clk 0:03:01.1]} 3. Bg2 {[%clk 0:03:05.7]} 3... Bg7 {[%clk 0:03:02.5]}
4. O-O {[%clk 0:03:07.6]} 4... e5 {[%clk 0:03:03.5]} 5. d3 {[%clk 0:03:08.6]}
5... Nc6 {[%clk 0:03:04.7]} 6. Nbd2 {[%clk 0:03:09.6]} 6... Nf6 {[%clk
0:03:04.9]} 7. e4 {[%clk 0:03:08.9]} 7... dxe4 {[%clk 0:03:04.1]} 8. Nxe4 {[%clk
0:03:09]} 8... Nxe4 {[%clk 0:03:04.8]} 9. dxe4 {[%clk 0:03:10.5]} 9... Qe7
{[%clk 0:03:03.8]} 10. c3 {[%clk 0:03:10.3]} 10... a5 {[%clk 0:03:05.1]} 11. Be3
{[%clk 0:03:11.5]} 11... Be6 {[%clk 0:03:05.2]} 12. Qc2 {[%clk 0:03:04.5]} 12...
O-O {[%clk 0:03:03.4]} 13. b3 {[%clk 0:03:02.8]} 13... h6 {[%clk 0:03:01.1]} 14.
Rad1 {[%clk 0:02:54.5]} 14... Rfd8 {[%clk 0:03:02.2]} 15. Rxd8+ {[%clk
0:02:51.7]} 15... Rxd8 {[%clk 0:03:04.1]} 16. Rd1 {[%clk 0:02:53.1]} 16... Rxd1+
{[%clk 0:03:05.2]} 17. Qxd1 {[%clk 0:02:55]} 17... Qa3 {[%clk 0:03:07.1]} 18.
Qc2 {[%clk 0:02:47.5]} 18... a4 {[%clk 0:03:02.2]} 19. bxa4 {[%clk 0:02:49.4]}
19... Bxa2 {[%clk 0:02:45.3]} 20. Nd2 {[%clk 0:02:45.4]} 20... Be6 {[%clk
0:02:35.5]} 21. Nb1 {[%clk 0:02:39.3]} 21... Qb3 {[%clk 0:02:04.1]} 22. Qxb3
{[%clk 0:02:27.2]} 22... Bxb3 {[%clk 0:02:06]} 23. Bf1 {[%clk 0:02:28.6]} 23...
Bxa4 {[%clk 0:02:06.6]} 24. Nd2 {[%clk 0:02:29.6]} 24... Na5 {[%clk 0:02:02.5]}
25. Nc4 {[%clk 0:02:24.4]} 25... Nxc4 {[%clk 0:02:02.2]} 26. Bxc4 {[%clk
0:02:26.3]} 26... Bf8 {[%clk 0:01:55.1]} 27. f4 {[%clk 0:02:25.2]} 27... Bd6
{[%clk 0:01:50.7]} 28. Kf2 {[%clk 0:02:24.4]} 28... Bc2 {[%clk 0:01:41]} 29. Kf3
{[%clk 0:02:19.8]} 29... c6 {[%clk 0:01:39.1]} 30. Bb6 {[%clk 0:02:18.6]} 30...
Kf8 {[%clk 0:01:32.3]} 31. Bf1 {[%clk 0:02:17.8]} 31... Ke7 {[%clk 0:01:26.9]}
32. Bh3 {[%clk 0:02:18.7]} 32... f5 {[%clk 0:01:22.2]} 33. exf5 {[%clk
0:02:16.8]} 33... gxf5 {[%clk 0:01:24.1]} 34. Ke3 {[%clk 0:02:15.9]} 34... Ke6
{[%clk 0:01:20.7]} 35. fxe5 {[%clk 0:02:13.1]} 35... Bxe5 {[%clk 0:01:22.6]} 36.
Bd4 {[%clk 0:02:11.9]} 36... Kd5 {[%clk 0:01:03.2]} 37. Bg2+ {[%clk 0:02:08.8]}
37... Ke6 {[%clk 0:00:45.3]} 38. Bh3 {[%clk 0:02:07.2]} 38... Be4 {[%clk
0:00:46.6]} 39. Bf1 {[%clk 0:01:49.4]} 39... Kd5 {[%clk 0:00:45.7]} 40. Bc4+
{[%clk 0:01:46.7]} 40... Kd6 {[%clk 0:00:45.4]} 41. Bf1 {[%clk 0:01:42.7]} 41...
b5 {[%clk 0:00:36.4]} 42. Bxe5+ {[%clk 0:01:40]} 42... Kxe5 {[%clk 0:00:38.3]}
43. Be2 {[%clk 0:01:41.8]} 43... Bd5 {[%clk 0:00:34.7]} 44. h3 {[%clk
0:01:41.2]} 44... Be6 {[%clk 0:00:34.1]} 45. Bd3 {[%clk 0:01:41.7]} 45... Bd7
{[%clk 0:00:33.8]} 46. Bf1 {[%clk 0:01:40.3]} 46... c5 {[%clk 0:00:34.6]} 47. h4
{[%clk 0:01:39.2]} 47... Bc6 {[%clk 0:00:34.2]} 48. Be2 {[%clk 0:01:38.5]} 48...
b4 {[%clk 0:00:29.7]} 49. cxb4 {[%clk 0:01:36.4]} 49... cxb4 {[%clk 0:00:31.6]}
50. Bc4 {[%clk 0:01:32.6]} 50... Bd5 {[%clk 0:00:32.2]} 51. Be2 {[%clk
0:01:33.6]} 51... Be4 {[%clk 0:00:23.2]} 52. Bc4 {[%clk 0:01:32.3]} 52... Bc2
{[%clk 0:00:23.5]} 53. Kd2 {[%clk 0:01:31.6]} 53... Kd4 {[%clk 0:00:24.7]} 54.
Be6 {[%clk 0:01:29.7]} 54... Be4 {[%clk 0:00:26]} 55. h5 {[%clk 0:01:27.7]}
55... Bd3 {[%clk 0:00:22.2]} 56. Ba2 {[%clk 0:01:28.3]} 56... Bc4 {[%clk
0:00:20.7]} 57. Bb1 {[%clk 0:01:24.5]} 57... Be6 {[%clk 0:00:22.3]} 58. Bc2
{[%clk 0:01:22.8]} 58... b3 {[%clk 0:00:23.7]} 59. Bd3 {[%clk 0:01:23.5]} 59...
Ke5 {[%clk 0:00:07.6]} 60. Kc3 {[%clk 0:01:22.5]} 60... f4 {[%clk 0:00:09]} 61.
gxf4+ {[%clk 0:01:20.6]} 61... Kxf4 {[%clk 0:00:10.9]} 62. Bg6 {[%clk
0:01:21.8]} 62... Kg5 {[%clk 0:00:11]} 63. Be8 {[%clk 0:01:19.5]} 63... Bg4
{[%clk 0:00:07]} 64. Kxb3 {[%clk 0:01:08.9]} 64... Bxh5 {[%clk 0:00:08.9]} 65.
Bc6 {[%clk 0:01:06.8]} 65... Kf4 {[%clk 0:00:10.1]} 66. Kc3 {[%clk 0:00:54]}
66... Ke3 {[%clk 0:00:11.3]} 67. Ba4 {[%clk 0:00:52.4]} 67... Bg6 {[%clk
0:00:07.5]} 68. Bd1 {[%clk 0:00:51.4]} 68... Be4 {[%clk 0:00:09.2]} 69. Bh5
{[%clk 0:00:50.1]} 69... Bf3 {[%clk 0:00:09.5]} 70. Be8 {[%clk 0:00:49.2]} 70...
Bg4 {[%clk 0:00:10.6]} 71. Kc4 {[%clk 0:00:49.1]} 71... Bf5 {[%clk 0:00:10.3]}
72. Kd5 {[%clk 0:00:48.5]} 72... Kf4 {[%clk 0:00:11.4]} 73. Kd4 {[%clk
0:00:48.2]} 73... Be4 {[%clk 0:00:13.2]} 74. Kc3 {[%clk 0:00:46.4]} 74... Ke3
{[%clk 0:00:14.2]} 75. Bh5 {[%clk 0:00:45.8]} 75... Bf3 {[%clk 0:00:14.9]} 76.
Be8 {[%clk 0:00:45.5]} 76... Bg4 {[%clk 0:00:16.6]} 77. Kc4 {[%clk 0:00:44.6]}
77... Be6+ {[%clk 0:00:17.9]} 78. Kc3 {[%clk 0:00:44.4]} 78... Bd5 {[%clk
0:00:19.3]} 79. Bh5 {[%clk 0:00:43.8]} 79... Be4 {[%clk 0:00:20.4]} 80. Be8
{[%clk 0:00:42.8]} 80... Bf3 {[%clk 0:00:21.7]} 81. Bg6 {[%clk 0:00:41.9]} 81...
Be2 {[%clk 0:00:23.3]} 82. Be8 {[%clk 0:00:40.1]} 82... Bd3 {[%clk 0:00:24.7]}
83. Bf7 {[%clk 0:00:39.8]} 83... Bb5 {[%clk 0:00:25.7]} 84. Kb4 {[%clk
0:00:39.2]} 84... Bd7 {[%clk 0:00:25.2]} 85. Kc3 {[%clk 0:00:38.5]} 85... Bf5
{[%clk 0:00:26.2]} 86. Be8 {[%clk 0:00:38]} 86... Bg4 {[%clk 0:00:25.8]} 87. Kc4
{[%clk 0:00:37.5]} 87... Ke4 {[%clk 0:00:26.9]} 88. Bg6+ {[%clk 0:00:37]} 88...
Kf4 {[%clk 0:00:26.2]} 89. Kd3 {[%clk 0:00:36.4]} 89... Bf3 {[%clk 0:00:27.9]}
90. Be8 {[%clk 0:00:35.6]} 90... Bg4 {[%clk 0:00:27.6]} 91. Bg6 {[%clk
0:00:34.7]} 91... Kf3 {[%clk 0:00:29.2]} 92. Kd4 {[%clk 0:00:29.4]} 92... Kf4
{[%clk 0:00:29.3]} 93. Kd3 {[%clk 0:00:28.8]} 93... Bf3 {[%clk 0:00:29.4]} 94.
Be8 {[%clk 0:00:28.2]} 94... Be4+ {[%clk 0:00:29.9]} 95. Kc3 {[%clk 0:00:27.3]}
95... Ke3 {[%clk 0:00:31.1]} 96. Bh5 {[%clk 0:00:26.7]} 96... Bf5 {[%clk
0:00:32]} 97. Bf7 {[%clk 0:00:26]} 97... Bg4 {[%clk 0:00:33]} 98. Bg6 {[%clk
0:00:24.8]} 98... Be6 {[%clk 0:00:34.4]} 99. Bh5 {[%clk 0:00:24.3]} 99... Bf5
{[%clk 0:00:35.5]} 100. Bf7 {[%clk 0:00:25]} 100... Bh7 {[%clk 0:00:36.7]} 101.
Bh5 {[%clk 0:00:25.2]} 101... Bg8 {[%clk 0:00:38]} 102. Bg6 {[%clk 0:00:26.1]}
102... Be6 {[%clk 0:00:38.2]} 1/2-1/2

[Event "*** Titled Tuesday 3|2 Blitz"]
[Site "Chess.com"]
[Date "2016.08.02"]
[Round "9"]
[White "GremioPrudente"]
[Black "macko06"]
[Result "1/2-1/2"]
[WhiteElo "2091"]
[BlackElo "2110"]
[TimeControl "180+2"]
[EndTime "12:56:55 PDT"]
[Termination "Game drawn by agreement"]

1. Nf3 {[%clk 0:02:57.3]} 1... Nf6 {[%clk 0:02:58.1]} 2. c4 {[%clk 0:02:57.5]}
2... e6 {[%clk 0:02:58.4]} 3. d4 {[%clk 0:02:57.9]} 3... d5 {[%clk 0:02:59.6]}
4. Nc3 {[%clk 0:02:57.6]} 4... Be7 {[%clk 0:03:00.7]} 5. Bg5 {[%clk 0:02:57.5]}
5... O-O {[%clk 0:03:01.4]} 6. e3 {[%clk 0:02:57.5]} 6... Nbd7 {[%clk 0:03:02]}
7. Rc1 {[%clk 0:02:55.9]} 7... c6 {[%clk 0:03:02.2]} 8. Bd3 {[%clk 0:02:55.5]}
8... h6 {[%clk 0:03:01.7]} 9. Bh4 {[%clk 0:02:55.8]} 9... b6 {[%clk 0:03:03.1]}
10. O-O {[%clk 0:02:52.7]} 10... Bb7 {[%clk 0:03:04.6]} 11. cxd5 {[%clk
0:02:51.1]} 11... cxd5 {[%clk 0:03:04.6]} 12. Qe2 {[%clk 0:02:46.2]} 12... Ne4
{[%clk 0:02:56.3]} 13. Bxe7 {[%clk 0:02:43.9]} 13... Qxe7 {[%clk 0:02:58.2]} 14.
Bxe4 {[%clk 0:02:19.2]} 14... dxe4 {[%clk 0:02:58.6]} 15. Nd2 {[%clk 0:02:19.2]}
1/2-1/2

[Event "*** Titled Tuesday 3|2 Blitz"]
[Site "Chess.com"]
[Date "2016.08.02"]
[Round "9"]
[White "chipmunknau"]
[Black "pedromartinez91"]
[Result "1-0"]
[WhiteElo "2428"]
[BlackElo "2281"]
[TimeControl "180+2"]
[EndTime "12:58:11 PDT"]
[Termination "chipmunknau won by resignation"]

1. Nf3 {[%clk 0:03:01.9]} 1... d5 {[%clk 0:03:00.5]} 2. g3 {[%clk 0:03:00.6]}
2... e6 {[%clk 0:02:59.8]} 3. Bg2 {[%clk 0:03:01.6]} 3... Nf6 {[%clk 0:03:00.9]}
4. O-O {[%clk 0:03:02.4]} 4... Be7 {[%clk 0:03:02.4]} 5. d3 {[%clk 0:03:03.5]}
5... O-O {[%clk 0:03:03.9]} 6. Nc3 {[%clk 0:03:04.7]} 6... d4 {[%clk 0:03:00.3]}
7. Nb1 {[%clk 0:03:04]} 7... c5 {[%clk 0:02:59.7]} 8. c3 {[%clk 0:03:05.3]} 8...
Nc6 {[%clk 0:03:00.2]} 9. Bg5 {[%clk 0:03:02.7]} 9... h6 {[%clk 0:03:00]} 10.
Bxf6 {[%clk 0:02:59.9]} 10... Bxf6 {[%clk 0:03:00.9]} 11. Qc2 {[%clk 0:03:00.2]}
11... e5 {[%clk 0:02:58.2]} 12. Nbd2 {[%clk 0:02:58.9]} 12... Bf5 {[%clk
0:02:58.4]} 13. Qb3 {[%clk 0:02:57.5]} 13... b6 {[%clk 0:02:44.5]} 14. a4 {[%clk
0:02:43.6]} 14... Rb8 {[%clk 0:02:45.1]} 15. Ne1 {[%clk 0:02:40.2]} 15... Be7
{[%clk 0:02:39.3]} 16. Bxc6 {[%clk 0:02:40]} 16... Be6 {[%clk 0:02:35.8]} 17.
Qc2 {[%clk 0:02:39]} 17... f5 {[%clk 0:02:31]} 18. Bg2 {[%clk 0:02:30.3]} 18...
g5 {[%clk 0:02:31.4]} 19. e3 {[%clk 0:02:30.6]} 19... Rc8 {[%clk 0:02:27.4]} 20.
Nef3 {[%clk 0:02:25.3]} 20... c4 {[%clk 0:02:22.5]} 21. Nxe5 {[%clk 0:02:15.5]}
21... dxe3 {[%clk 0:02:23.5]} 22. Ndxc4 {[%clk 0:02:12.3]} 22... exf2+ {[%clk
0:02:24.4]} 1-0

[Event "*** Titled Tuesday 3|2 Blitz"]
[Site "Chess.com"]
[Date "2016.08.02"]
[Round "9"]
[White "Alliswell998"]
[Black "Krutoy123"]
[Result "0-1"]
[WhiteElo "2211"]
[BlackElo "2388"]
[TimeControl "180+2"]
[EndTime "12:59:32 PDT"]
[Termination "Krutoy123 won by resignation"]

1. e4 {[%clk 0:03:01.9]} 1... c5 {[%clk 0:02:55.9]} 2. Nf3 {[%clk 0:03:02]} 2...
e6 {[%clk 0:02:57]} 3. d4 {[%clk 0:03:03]} 3... cxd4 {[%clk 0:02:58.9]} 4. Nxd4
{[%clk 0:03:04.7]} 4... a6 {[%clk 0:03:00.4]} 5. Nc3 {[%clk 0:03:05.5]} 5... b5
{[%clk 0:03:01.7]} 6. Bd3 {[%clk 0:03:04.2]} 6... Bb7 {[%clk 0:03:02.2]} 7. Qe2
{[%clk 0:03:01.9]} 7... Qb6 {[%clk 0:03:03.3]} 8. Nb3 {[%clk 0:02:47.6]} 8...
Qc7 {[%clk 0:03:03.5]} 9. Be3 {[%clk 0:02:46.6]} 9... d6 {[%clk 0:03:02]} 10.
O-O-O {[%clk 0:02:47]} 10... Nd7 {[%clk 0:03:00.2]} 11. f4 {[%clk 0:02:44.4]}
11... Ngf6 {[%clk 0:02:58.5]} 12. a3 {[%clk 0:02:40.1]} 12... Be7 {[%clk
0:02:58.2]} 13. g4 {[%clk 0:02:40.4]} 13... Nc5 {[%clk 0:02:57]} 14. Bd4 {[%clk
0:02:27.8]} 14... Nxb3+ {[%clk 0:02:52.7]} 15. cxb3 {[%clk 0:02:28.7]} 15... e5
{[%clk 0:02:54.3]} 16. Bf2 {[%clk 0:02:02.3]} 16... exf4 {[%clk 0:02:54.4]} 17.
Kb1 {[%clk 0:02:01.7]} 17... Nd7 {[%clk 0:02:55]} 18. Nd5 {[%clk 0:02:00.7]}
18... Bxd5 {[%clk 0:02:55.7]} 19. exd5 {[%clk 0:02:02.2]} 19... Ne5 {[%clk
0:02:57.3]} 20. Rc1 {[%clk 0:02:00.9]} 20... Qd8 {[%clk 0:02:58.4]} 21. Bd4
{[%clk 0:01:53.4]} 21... Nxd3 {[%clk 0:02:55.8]} 22. Qxd3 {[%clk 0:01:55.3]}
22... O-O {[%clk 0:02:56.8]} 23. Qf5 {[%clk 0:01:54.1]} 23... g6 {[%clk
0:02:53.9]} 24. Qxf4 {[%clk 0:01:53.6]} 24... Bg5 {[%clk 0:02:55.1]} 25. Qg3
{[%clk 0:01:39.8]} 25... Bxc1 {[%clk 0:02:54.7]} 26. Rxc1 {[%clk 0:01:41.7]}
26... Qg5 {[%clk 0:02:55.2]} 27. Qxd6 {[%clk 0:01:36.7]} 27... Rfd8 {[%clk
0:02:56.1]} 28. Qg3 {[%clk 0:01:27.9]} 28... Qxd5 {[%clk 0:02:56.7]} 29. Bc3
{[%clk 0:01:28.8]} 29... Qd3+ {[%clk 0:02:57.3]} 30. Qxd3 {[%clk 0:01:26.1]}
30... Rxd3 {[%clk 0:02:59.2]} 31. Kc2 {[%clk 0:01:27.3]} 31... Rh3 {[%clk
0:02:59.9]} 32. Be5 {[%clk 0:01:27.1]} 32... Rc8+ {[%clk 0:03:00.9]} 33. Kb1
{[%clk 0:01:27.1]} 33... Rxc1+ {[%clk 0:03:02.8]} 34. Kxc1 {[%clk 0:01:29]}
34... Rxb3 {[%clk 0:02:56.6]} 35. Bc3 {[%clk 0:01:29.3]} 35... Rxc3+ {[%clk
0:02:57.1]} 36. bxc3 {[%clk 0:01:30.3]} 36... Kg7 {[%clk 0:02:58.6]} 37. Kc2
{[%clk 0:01:29]} 37... Kf6 {[%clk 0:02:59.9]} 38. Kb2 {[%clk 0:01:28.8]} 38...
Ke5 {[%clk 0:03:01.1]} 39. Kb3 {[%clk 0:01:30.4]} 39... f5 {[%clk 0:03:02]} 40.
gxf5 {[%clk 0:01:30.6]} 40... gxf5 {[%clk 0:03:03.9]} 41. Kb4 {[%clk 0:01:32.5]}
41... f4 {[%clk 0:03:05.1]} 0-1

[Event "*** Titled Tuesday 3|2 Blitz"]
[Site "Chess.com"]
[Date "2016.08.02"]
[Round "9"]
[White "Sven_Tica"]
[Black "SabinoBrunello"]
[Result "0-1"]
[WhiteElo "2422"]
[BlackElo "2556"]
[TimeControl "180+2"]
[EndTime "13:00:09 PDT"]
[Termination "SabinoBrunello won by resignation"]

1. d4 {[%clk 0:03:01.9]} 1... g6 {[%clk 0:03:01.6]} 2. c4 {[%clk 0:03:03.1]}
2... Bg7 {[%clk 0:03:02.4]} 3. Nf3 {[%clk 0:03:01.3]} 3... c5 {[%clk 0:03:03.4]}
4. e3 {[%clk 0:03:02.7]} 4... d6 {[%clk 0:03:04.4]} 5. Nc3 {[%clk 0:03:02.9]}
5... Nd7 {[%clk 0:03:05]} 6. g3 {[%clk 0:03:01.5]} 6... Ngf6 {[%clk 0:03:05.6]}
7. Bg2 {[%clk 0:03:03]} 7... O-O {[%clk 0:03:07.3]} 8. O-O {[%clk 0:03:04.2]}
8... a6 {[%clk 0:03:07.7]} 9. b3 {[%clk 0:03:04.4]} 9... Rb8 {[%clk 0:03:08.5]}
10. Bb2 {[%clk 0:03:00.8]} 10... b5 {[%clk 0:03:08.7]} 11. cxb5 {[%clk
0:03:01.7]} 11... axb5 {[%clk 0:03:09.6]} 12. dxc5 {[%clk 0:03:00.8]} 12... Nxc5
{[%clk 0:03:09.5]} 13. Nd4 {[%clk 0:02:59.7]} 13... Bd7 {[%clk 0:03:09.5]} 14.
Qe2 {[%clk 0:02:53]} 14... b4 {[%clk 0:03:09.7]} 15. Nd5 {[%clk 0:02:33.4]}
15... Nxd5 {[%clk 0:03:09.9]} 16. Bxd5 {[%clk 0:02:35.3]} 16... e6 {[%clk
0:03:06.9]} 17. Nc6 {[%clk 0:02:11.2]} 17... Bxc6 {[%clk 0:03:00.4]} 18. Bxc6
{[%clk 0:02:13.1]} 18... Bxb2 {[%clk 0:02:51.8]} 19. Qxb2 {[%clk 0:02:12.7]}
19... d5 {[%clk 0:02:51.4]} 20. Qd4 {[%clk 0:02:13.9]} 20... Qd6 {[%clk
0:02:41.1]} 21. Rac1 {[%clk 0:02:02.2]} 21... Ne4 {[%clk 0:02:40.7]} 22. Ba4
{[%clk 0:01:54.5]} 22... Nc3 {[%clk 0:02:38.6]} 23. Rxc3 {[%clk 0:01:55.2]}
23... bxc3 {[%clk 0:02:39.2]} 24. Qxc3 {[%clk 0:01:57.1]} 24... Rfc8 {[%clk
0:02:40.7]} 25. Qd2 {[%clk 0:01:56.2]} 25... Qb4 {[%clk 0:02:40.4]} 26. Qe2
{[%clk 0:01:43.7]} 26... Rc5 {[%clk 0:02:35.3]} 27. Rd1 {[%clk 0:01:44.4]} 27...
Rbc8 {[%clk 0:02:35.5]} 28. Rd2 {[%clk 0:01:44.6]} 28... Rc1+ {[%clk 0:02:35.3]}
29. Kg2 {[%clk 0:01:45.2]} 29... R8c2 {[%clk 0:02:34.7]} 30. Rxc2 {[%clk
0:01:41.4]} 30... Qe4+ {[%clk 0:02:34.2]} 31. Kh3 {[%clk 0:01:42.9]} 31... Rxc2
{[%clk 0:02:33.7]} 32. Qe1 {[%clk 0:01:01.5]} 32... Rxa2 {[%clk 0:02:29.9]} 0-1